Cogmind - Beta 15 @@@ ROGUE MODE // 2025.07.10 @ 15:40:38 Player: jumpy Result: Destroyed by Piercing Trap Performance ------------- Evolutions (0) 0 Regions Visited (2) 400 Robots Destroyed (12) 60 Value Destroyed (251) 251 Prototype IDs (0) 0 Alien Tech Used (0) 0 Bonus (0) 0 TOTAL SCORE: 711 Bonus ------- None Cogmind --------- Core Integrity 0/250 Matter 264/300 Energy 99/100 System Corruption 0% Temperature Cool (0) Movement Core (50) Location -10/Subcaves Parts ------- > --- POWER (1) -------- (None) > --- PROPULSION (2) --- (None) > --- UTILITY (2) ------ (None) > --- WEAPON (2) ------- (None) > --- INVENTORY (5) ---- Ion Engine Improved Treads Improved Treads Improved Treads Mining Laser Peak State ------------ > --- POWER ------------ Ion Engine > --- PROPULSION ------- Light Treads Light Treads > --- UTILITY ---------- Small Storage Unit Seismic Detector > --- WEAPON ----------- Shotgun Shotgun > --- INVENTORY -------- Ion Engine Improved Treads Improved Treads Compact Wheel Compact Wheel Improved Terrain Scanner Seismic Detector Mining Laser [Rating: 10] Favorites ----------- Power Ion Engine Engine Ion Engine Propulsion Light Treads Treads Light Treads Utility Small Storage Unit Device Seismic Detector Storage Small Storage Unit Weapon Shotgun Energy Gun Small Laser Ballistic Gun Shotgun Build | -11 -10 -10 ------- Run | Yrd Mat Sub Slots Evolved . | . . . Power . | . . . Propulsion . | . . . Utility . | . . . Weapon . | . . . Parts Attached 11 | 7 3 1 Power 1 | 1 . . Engine 1 | 1 . . Core . | . . . Reactor . | . . . Propulsion 2 | 2 . . Treads 2 | 2 . . Leg . | . . . Wheel . | . . . Hover . | . . . Flight . | . . . Utility 3 | 2 . 1 Device 2 | 1 . 1 Storage 1 | 1 . . Processor . | . . . Hackware . | . . . Protection . | . . . Artifact . | . . . Weapon 5 | 2 3 . Energy Gun 2 | 2 . . Energy Cannon . | . . . Ballistic Gun 3 | . 3 . Ballistic Cannon . | . . . Launcher . | . . . Special Weapon . | . . . Impact Weapon . | . . . Slashing Weapon . | . . . Piercing Weapon . | . . . Special Melee Weapon . | . . . Unidentified Prototypes . | . . . Parts Lost 5 | . . 5 Power 1 | . . 1 Propulsion 1 | . . 1 Utility 1 | . . 1 Weapon 2 | . . 2 Highest Loss Streak 4 | . . 4 To Critical Strikes . | . . . Average Backups 6 | 3 7 7 Power . | . 1 1 Propulsion 3 | 1 3 3 Utility 1 | . 2 1 Weapon . | . 1 1 Tool/Special . | . . . Unused Backups 11 | 1 3 7 Power 1 | . . 1 Propulsion 8 | 1 3 4 Utility 1 | . . 1 Weapon 1 | . . 1 Tool/Special . | . . . Average Slot Usage (%) 96 | . 100 94 Engine 13 | . 14 12 Treads 28 | . 28 28 Device 13 | . 14 13 Storage 14 | . 14 14 Energy Gun 5 | . 13 . Ballistic Gun 19 | . 14 24 Peak Build Rating 10 | 7 10 10 Average Rating 8 | 5 8 9 On Entrance 5 | . 7 10 Naked Turns 3 | . . 3 Heaviest Build 17 | 14 17 17 Greatest Support 40 | 40 40 40 Greatest Overweight (x) . | . . . Average Overweight (x) . | . . . Largest Inventory Capacity 8 | 8 8 8 Average Capacity 7 | 6 8 7 Most Carried 8 | 6 8 8 Average Carried 6 | 3 7 7 Final Capacity 8 | 8 8 5 Final Carried 8 | 6 8 5 Class Distribution -------------------- 100% | Mutant Dominant Class ---------------- Mutant | -10/Materials Mutant | -10/Subcaves Resources | -11 -10 -10 ----------- Run | Yrd Mat Sub Matter Collected 425 | 270 17 138 Remotely . | . . . Salvage Created 364 | 161 79 124 Parts 37 | 14 11 12 Haulers Intercepted . | . . . Recyclers Shooed . | . . . Parts Field Recycled . | . . . Retrieved Matter . | . . . Parts Self-Destructed . | . . . Prevented . | . . . Kills | -11 -10 -10 ------- Run | Yrd Mat Sub Combat Hostiles Destroyed 8 | . 4 4 Guns 8 | . 4 4 Classes Destroyed 5 | 2 2 1 Tunneler 3 | 3 . . Recycler 1 | 1 . . Swarmer 3 | . 3 . Grunt 1 | . 1 . Subdweller 4 | . . 4 Best Kill Streak 3 | 3 3 2 Combat Bots Only 3 | . 3 2 Max Kills in Single Turn 2 | 1 2 1 Gunslinging 1 | . 1 . Exploded . | . . . Melee . | . . . Uniques/NPCs Destroyed . | . . . Combat | -11 -10 -10 -------- Run | Yrd Mat Sub Hostile Shots Fired 58 | . 7 51 Missed 17 | . 1 16 Hits 41 | . 6 35 Projectile 41 | . 6 35 Critical Strikes 1 | . . 1 Damage Taken 892 | . 54 838 Core 256 | . 7 249 Absorbed by Shields . | . . . Core Remaining (%) 100 | 100 . . Volleys Fired 35 | 6 5 24 Largest 2 | 2 2 2 Hottest 90 | 90 90 46 Shots Fired 62 | 12 10 40 Gun 62 | 12 10 40 Cannon . | . . . Launcher . | . . . Special . | . . . Kinetic 44 | . 4 40 Thermal 18 | 12 6 . Explosive . | . . . Electromagnetic . | . . . Robot Hit Streak 14 | 5 6 14 Robot Miss Streak 4 | 1 3 4 Penetration Max . | . . . Secondary Targets 1 | . 1 . Max Gunslinging Chain 1 | . 1 . Shots Hit Robots 48 | 8 7 33 Core Hits 22 | 5 5 12 Critical Kills . | . . . Critical Parts Destroyed . | . . . Critical Strikes 2 | 1 . 1 Burn 1 | 1 . . Destroy 1 | . . 1 Melee Attacks . | . . . Impact . | . . . Slashing . | . . . Piercing . | . . . Sneak Attacks . | . . . Combat Hostiles . | . . . Follow-up Attacks . | . . . Damage Inflicted 549 | 107 92 350 Guns 549 | 107 92 350 Cannons . | . . . Explosions . | . . . Melee . | . . . Ramming . | . . . Kinetic 385 | . 35 350 Thermal 164 | 107 57 . Explosive . | . . . Electromagnetic . | . . . Impact . | . . . Slashing . | . . . Piercing . | . . . Highest Corruption . | . . . Average Corruption . | . . . Corruption Purged . | . . . Corruption Blocked . | . . . Overload Shots . | . . . Overflow Damage . | . . . Projectiles . | . . . Explosions . | . . . Melee . | . . . Knockbacks . | . . . Impact . | . . . Kinetic . | . . . Secondary . | . . . Self-Inflicted Damage . | . . . Shots . | . . . Rammed . | . . . Targets Rammed . | . . . Kicked . | . . . Crushed . | . . . Highest Temperature 90 | 90 90 . Average Temperature 40 | 37 44 . Received Heat Transfer 30 | . 12 18 Siege Activations . | . . . Martial Activations . | . . . Shielding Activations . | . . . Robots Disrupted . | . . . Combat Hostiles . | . . . Robots Corrupted . | . . . Combat Hostiles . | . . . Parts Fried . | . . . Impact Corruptions . | . . . Robots Melted . | . . . Combat Hostiles . | . . . Parts Melted 1 | . . 1 Heat Transferred 496 | 347 149 . Parts Sabotaged . | . . . Parts Stolen . | . . . Parts Stripped . | . . . Power Chain Reactions . | . . . Alert | -11 -10 -10 ------- Run | Yrd Mat Sub Maximum Alert Level . | . . . Low Security (%) 100 | 100 100 . Level 1 . | . . . Level 2 . | . . . Level 3 . | . . . Level 4 . | . . . Level 5 . | . . . High Security . | . . . Max Security . | . . . Peak Influence 70 | 10 70 . Initial . | . . . Average 19 | 1 32 . Influence Increases 120 | 20 100 . Destroy 0b10 Robot/C 80 | . 80 . Destroy 0b10 Robot/NC 20 | 20 . . Destroy Leader 20 | . 20 . Influence Decreases 120 | 20 60 40 Entered New Map 20 | . . 20 Time Decay 100 | 20 60 20 Squads Dispatched 1 | . 1 . Investigation 1 | . 1 . Extermination . | . . . Reinforcement . | . . . Assault . | . . . Garrison . | . . . Intercept . | . . . Searches Triggered . | . . . Construction Impeded . | . . . Haulers Reinforced . | . . . Active Scanning Responses . | . . . Cargo Convoy Interrupts . | . . . Stealth | -11 -10 -10 --------- Run | Yrd Mat Sub Distress Signals . | . . . Communications Jammed . | . . . Distress Signals . | . . . Times Spotted 12 | . 4 8 Peak Tracking Total 4 | . 3 4 Tactical Retreats . | . . . Traps | -11 -10 -10 ------- Run | Yrd Mat Sub Traps Triggered 3 | . 1 2 Indirectly . | . . . Trap Hack Attempts . | . . . Triggered . | . . . Disarmed . | . . . Reprogrammed . | . . . Reused . | . . . Traps Extracted . | . . . Installed . | . . . Triggered . | . . . Machines | -11 -10 -10 ---------- Run | Yrd Mat Sub Machines Disabled . | . . . Max in Single Turn . | . . . Machines Repaired . | . . . Machines Dismantled . | . . . Machines Sabotaged . | . . . Overloaded Fab Kills . | . . . Hacking | -11 -10 -10 --------- Run | Yrd Mat Sub Machines Accessed . | . . . Terminals . | . . . Fabricators . | . . . Repair Stations . | . . . Recycling Units . | . . . Scanalyzers . | . . . Garrison Access . | . . . Total Hacks . | . . . Successful . | . . . Failed . | . . . Catastrophic . | . . . Database Lockouts . | . . . Manual . | . . . Terminals . | . . . Fabricators . | . . . Repair Stations . | . . . Recycling Units . | . . . Scanalyzers . | . . . Garrison Access . | . . . Terminal Hacks . | . . . Fabricator Hacks . | . . . Repair Station Hacks . | . . . Recycling Unit Hacks . | . . . Scanalyzer . | . . . Garrison Access Hacks . | . . . Unauthorized Hacks . | . . . Terminals . | . . . Fabricators . | . . . Repair Stations . | . . . Recycling Units . | . . . Scanalyzers . | . . . Garrison Access . | . . . Data Cores Recovered . | . . . Used . | . . . Hacking Detections . | . . . Full Trace Events . | . . . Feedback Events . | . . . Feedback Blocked . | . . . Robot Schematics Acquired . | . . . Robots Built . | . . . Authchips . | . . . Time . | . . . Total Robot Build Rating . | . . . Part Schematics Acquired . | . . . Parts Built . | . . . Authchips . | . . . Time . | . . . Total Part Build Rating . | . . . Parts Repaired . | . . . Time . | . . . Parts Recycled . | . . . Recycled Matter . | . . . Retrieved Matter . | . . . Retrieved Components . | . . . Parts Scanalyzed . | . . . Part Schematics Acquired . | . . . Parts Damaged . | . . . Bothacking | -11 -10 -10 ------------ Run | Yrd Mat Sub Used RIF Installer . | . . . Robots Hacked . | . . . Non-combat . | . . . Combat . | . . . Robot Hacks Applied . | . . . Relay Couplers Released . | . . . Fabnet Peak Effective % . | . . . Robots Rewired . | . . . Allies Hacked . | . . . Hacks Repelled . | . . . Allies | -11 -10 -10 -------- Run | Yrd Mat Sub Total Allies . | . . . Largest Group . | . . . Highest-Rated Group . | . . . Highest-Rated Ally . | . . . Total Orders . | . . . Ally Attacks . | . . . Total Damage . | . . . Kills . | . . . Allies Corrupted . | . . . Allies Melted . | . . . Intel | -11 -10 -10 ------- Run | Yrd Mat Sub Active Infowar (turns) 419 | 47 169 203 Seismic 419 | 47 169 203 Robot Analysis Total . | . . . Derelict Logs Recovered . | . . . Drone Launches . | . . . Drone Recoveries . | . . . Exploration | -11 -10 -10 ------------- Run | Yrd Mat Sub Turns Passed 507 | 121 169 217 Spaces Moved 239 | 56 91 92 Core 9 | 3 . 6 Treads 230 | 53 91 86 Legs . | . . . Wheels . | . . . Hover . | . . . Flight . | . . . Fastest Speed 50 | 50 160 50 Average Speed 155 | 154 160 152 Slowest Speed 160 | 160 160 160 Overloaded Moves . | . . . Propulsion Burnouts . | . . . Robots Hopped . | . . . Potential Cave-ins . | . . . Cave-ins Triggered . | . . . Exploration Rate (%) 9 | 3 15 11 Regions Visited 2 Branch Regions 1 Pre-discovered Areas . | . . . Known Exits Taken . | . . . Unknown Exits Taken 2 | 1 1 . Scrap Searched . | . . . Spaces Dug . | . . . Terrain Destroyed . | . . . Melee . | . . . Projectile . | . . . AOE . | . . . Terrain Rammed . | . . . Walls Destroyed . | . . . Machines Disabled . | . . . Actions | -11 -10 -10 --------- Run | Yrd Mat Sub Total 311 | 76 108 127 Wait 10 | . . 10 Move 237 | 55 90 92 Hop . | . . . Pick Up 13 | 7 6 . Fast Attach 7 | 7 . . Attach 1 | . . 1 Detach . | . . . Swap 3 | . 3 . Drop 5 | 1 4 . Fire 35 | 6 5 24 Melee . | . . . Ram . | . . . Kick . | . . . Crush . | . . . Escape Stasis . | . . . Rewire . | . . . Trap . | . . . Miscellaneous . | . . . Route ------- -11/Scrapyard -10/Materials -10/Subcaves History --------- Turn | Location | Event 59 | -11/Scrapyard | Discovered new exit (range 15) 122 | -11/Scrapyard | Entered Materials 266 | -10/Materials | Discovered new exit (range 12) 291 | -10/Materials | Entered Subcaves 318 | -10/Subcaves | Build established: Mutant 479 | -10/Subcaves | Core integrity fell below 50% 505 | -10/Subcaves | Released all parts (3) 508 | -10/Subcaves | Core integrity fell below 20% 508 | -10/Subcaves | Destroyed by Piercing Trap Last Messages --------------- 00390_ SC-Z0B(R): "LEAVESUB!" 00397_ Seismic Detector destroyed. 00399_ SC-Z0B(R) suffers critical hit (Destroy). 00405_ SC-Z0B(R) destroyed. 00412_ Acquired 31 matter. 00415_ Acquired 8 matter. 00421_ Acquired 6 matter. 00466_ Shotgun destroyed. 00486_ Ion Engine destroyed. 00488_ Shotgun destroyed. 00494_ Triggered Piercing Trap. 00494_ Spikes shoot up from the floor. 00494_ Critical hit (Impale). 00504_ Lgt. Treads destroyed. 00505_ Released Seismic Detector. 00505_ Released Sml. Storage Unit. 00505_ Released Lgt. Treads. 00508_ Triggered Piercing Trap. 00508_ Spikes shoot up from the floor. 00508_ Critical hit (Impale). Map ----- +----------------------------------------------------+ | ???????????????###????????# ##?#??? | | ???????????????# ????????#% ## # %#????? | | ???????????? ?##" "?????# %######## # ##????? | | ???????????? " " """????# #??????######?????? | | ?????????????? " ????## #?????????????????? | | ????????????????# ????## ##?????????????????? | | ?????????????????# ##### ##??????????????????? | | ???????????????????# " #???????????????????? | | ???????????????????# " "##???????????????????? | | ???????????????????##" " ###????????????????????? | | ????????????????????##" ##??????????????????????? | | ?????????????????????#" ##???????????????????????? | | ?????????????????????# ####?????????????????????? | | ?????????????????????## #?????????????????????? | | ??????????????????????# ##????????????????????? | | ??????????????????????# # ##???????????????????? | | ??????????????????????####RR #???????????????????? | | ????????????????????????## #???????????????????? | | ????????????????????##### #???????????????????? | | ???????????????????## = ##??????????????????? | | ???????????????????# !!! #??????????????????? | | ???????????????????## = #??????????????????? | | ????????????????????### " ##??????????????????? | | ??????????????????????# " ##???????????????????? | | ?????????????????????## " ###??????????????????? | | ?????????????????????#"""@ #??????????????????? | | ?????????????????????###"" R ##??????????????????? | | ???????????????????????# ""R #???????????????????? | | ???????????????????????" "" "??????????????????? | | ??????????????????????" "" ""????????????????? | | ????????????????????? # #""" "???????????????? | | ????????????????????? ####""" ??????????????? | | ????????????????????? ""???????" ?????????????? | | ???????????????????? ###?????????? ????????????? | | ?????????????????????????????????????????????????? | | ?????????????????????????????????????????????????? | | ?????????????????????????????????????????????????? | | ?????????????????????????????????????????????????? | | ?????????????????????????????????????????????????? | | ?????????????????????????????????????????????????? | | ?????????????????????????????????????????????????? | | ?????????????????????????????????????????????????? | | ?????????????????????????????????????????????????? | | ?????????????????????????????????????????????????? | | ?????????????????????????????????????????????????? | | ?????????????????????????????????????????????????? | | ?????????????????????????????????????????????????? | | ?????????????????????????????????????????????????? | | ?????????????????????????????????????????????????? | | ?????????????????????????????????????????????????? | +----------------------------------------------------+ Best States ------------- Heat Dissipation 25 Energy Generation 10 Energy Capacity 250 Matter Stores 300 Matter Capacity 300 Sight Range 16 Terrain Scan Density 10 Evasion (%) 40 Recoil Reduction 2 Item Schematics ----------------- None Robot Schematics ------------------ None Fabricated ------------ Nothing Repaired ---------- Nothing Alien Tech Used ----------------- None Achievements -------------- None Challenges ------------ None Game ------ Seed GatlingTransdimensionalDrive Manual? 0 Play Time 00:03:58 Cumulative 142.7 hours Start 2025.07.10 @ 15:37:37 End 2025.07.10 @ 15:40:38 Sessions 1 Manual Loads 0 Difficulty Rogue Special Mode None Game No. 369 Rogue 369 Adventurer 0 Explorer 0 Win Type - Total 4 Types 3/0/1/0/0/0/0/0/0/0 Lore% 68 Gallery% 57 Achievement% 47 Wizard Run 0 Options --------- Layout 0 ASCII 0 Keyboard 0 Movement Numpad Keybinds 0 Fullscreen 2 Font 18/Terminus Map View 76x50 Zoom Use 0% Tactical HUD 1 Map Filters NONE Filters NONE Steam 1 RUN: 41c54fda-f6cf-4ce8-86d3-b3206636c236